bitfinex/quotes_ETHUSD_20240610
["timestamp","ask_amount","ask_price","bid_price","bid_amount"]
[1717980114828,5.01918651,3698.2,3698.1,35.08691625]
[1717980115997,3.6057,3698.2,3698.1,35.08691625]
[1717980116827,4.7359009,3698.2,3698.1,35.08691625]
[1717980117421,4.7359009,3698.2,3698.1,0.08691625]
[1717980117804,4.7359009,3698.2,3698.1,35.0]
[1717980118135,4.7359009,3698.2,3698.1,35.08691625]
[1717980121033,3.6057,3698.2,3698.1,0.08691625]
[1717980121528,3.6057,3698.2,3698.1,35.0]
[1717980121743,4.73588991,3698.2,3698.1,35.0]
[1717980121947,4.73588991,3698.2,3698.1,35.08691625]
[1717980123025,2.48218991,3698.2,3698.1,35.08691625]
[1717980137168,1.352,3698.2,3698.1,35.08691625]
[1717980141973,2.48240228,3698.2,3698.1,35.08691625]
[1717980143056,1.13040228,3698.2,3698.1,37.57561625]
[1717980143234,1.13040228,3698.2,3698.1,5.2259217]
[1717980143434,1.13040228,3698.3,3698.1,2.57561625]
[1717980143672,1.13040228,3698.3,3698.2,35.0]
[1717980144050,1.13040228,3698.3,3698.2,35.08687079]
[1717980148370,1.13040228,3698.4,3698.2,35.08687079]
[1717980148691,1.13040228,3698.4,3698.3,2.65030545]
[1717980148889,1.13040228,3698.5,3698.3,2.65030545]
[1717980149055,1.13040228,3698.5,3698.3,0.08681067]
[1717980149256,2.48228228,3698.6,3698.4,35.0]
[1717980149592,2.48228228,3698.6,3698.5,0.08669043]
[1717980150991,2.48228228,3698.6,3698.1,2.4887]
[1717980151300,2.48228228,3698.6,3698.5,0.08669043]
[1717980151479,2.48228228,3698.6,3698.2,35.0]
[1717980152091,2.48228228,3698.6,3698.3,0.08681067]
[1717980152473,2.48228228,3698.6,3698.2,35.0]
[1717980152688,2.48228228,3698.6,3698.4,0.08675055]
[1717980152871,2.48228228,3698.6,3698.3,0.08681067]
[1717980153070,2.48228228,3698.6,3698.5,0.08669043]
[1717980153266,2.48228228,3698.6,3698.4,0.08675055]
[1717980153599,2.48228228,3698.6,3698.5,0.08669043]
[1717980153966,2.48228228,3698.6,3698.2,35.0]
[1717980154182,2.48228228,3698.6,3698.5,0.08669043]
[1717980154395,2.48228228,3698.6,3698.2,37.65030545]
[1717980154716,2.48228228,3698.6,3698.5,0.08669043]
[1717980154989,2.48228228,3698.6,3698.5,0.086626]
[1717980155504,2.48228228,3698.6,3698.2,37.65030545]
[1717980155671,2.48228228,3698.6,3698.5,0.086626]
[1717980155867,2.48228228,3698.6,3698.2,35.0]
[1717980156071,2.48228228,3698.6,3698.5,0.086626]
[1717980156572,2.48228228,3698.6,3698.2,35.0]
[1717980156765,2.48228228,3698.6,3698.5,0.086626]
[1717980156971,2.48228228,3698.6,3698.2,35.0]
[1717980157171,2.48228228,3698.6,3698.5,0.086626]
[1717980157460,2.48228228,3698.6,3698.2,35.0]
[1717980157787,2.48228228,3698.6,3698.2,37.65030545]
[1717980158092,2.48228228,3698.6,3698.3,0.08674623]
[1717980158596,2.48228228,3698.6,3698.4,35.08668611]
[1717980161393,1.35188,3698.6,3698.4,35.08668611]
[1717980161738,1.35188,3698.6,3698.4,0.08668611]
[1717980161940,2.48228228,3698.6,3698.4,0.08668611]
[1717980162101,2.48228228,3698.6,3697.9,2.4002]
[1717980162288,2.48228228,3698.6,3698.5,0.086626]
[1717980162487,2.48228228,3698.6,3698.0,35.30612]
[1717980162718,2.48228228,3698.6,3698.5,0.086626]
[1717980162889,2.48228228,3698.6,3698.0,35.30612]
[1717980163089,2.48228228,3698.6,3698.1,2.65030545]
[1717980163501,2.48228228,3698.6,3698.2,0.08680636]
[1717980163735,2.48228228,3698.6,3698.3,35.0]
[1717980164089,2.48228228,3698.6,3698.4,0.08668611]
[1717980165894,3.14328228,3698.6,3698.4,0.08668611]
[1717980166336,3.14328228,3698.6,3697.9,35.0]
[1717980166630,1.13040228,3698.5,3698.0,2.73723206]
[1717980167183,1.13040228,3698.5,3698.0,0.08692661]
[1717980167387,1.13040228,3698.5,3698.1,35.0]
[1717980167673,1.13040228,3698.5,3698.1,35.08686648]
[1717980167877,3.14328228,3698.6,3698.1,35.08686648]
[1717980168666,1.13040228,3698.5,3698.1,35.08686648]
[1717980168861,1.13040228,3698.5,3698.1,37.13848946]
[1717980169878,3.14328228,3698.6,3698.1,37.13848946]
[1717980170058,3.14328228,3698.6,3698.1,35.08686648]
[1717980170264,1.13040228,3698.5,3698.1,35.08686648]
[1717980170860,3.14328228,3698.6,3698.1,0.08686648]
[1717980171052,3.14328228,3698.6,3697.8,2.3814]
[1717980171270,3.14328228,3698.6,3698.2,0.08682686]
[1717980171473,2.48228228,3698.6,3697.9,35.0]
[1717980171679,2.48228228,3698.6,3698.3,0.08676673]
[1717980171878,2.48228228,3698.6,3698.0,2.4882]
[1717980172151,2.48228228,3698.6,3698.4,0.08670661]
[1717980172357,2.48228228,3698.6,3698.5,0.0866465]
[1717980172857,2.48228228,3698.6,3697.9,35.0]
[1717980173081,2.48228228,3698.6,3698.5,0.0866465]
[1717980173253,2.48228228,3698.6,3698.0,2.65030545]
[1717980173984,2.48228228,3698.6,3698.1,0.08688698]
[1717980176874,2.48228228,3698.6,3698.2,35.0]
[1717980177071,2.48228228,3698.6,3698.2,35.08682686]
[1717980177462,1.13040228,3698.5,3698.2,35.08682686]
[1717980180272,1.13040228,3698.5,3698.2,0.08682686]
[1717980180472,1.13040228,3698.5,3697.7,3.1492]
[1717980180673,1.13040228,3698.5,3698.3,0.08676673]
[1717980180885,1.13040228,3698.4,3697.8,35.0]
[1717980182185,1.13040228,3698.4,3697.9,0.08700725]
[1717980185607,1.13040228,3698.3,3698.0,0.08697638]
[1717980185808,2.467,3698.2,3698.0,35.08697638]
[1717980186003,2.467,3698.2,3698.1,0.08691625]
[1717980186403,3.128,3698.2,3698.1,0.08691625]
[1717980186585,3.83033952,3698.2,3698.1,0.08691625]
[1717980187588,1.35207,3698.1,3697.1,0.661]
[1717980187787,1.12991573,3697.9,3697.2,0.08746925]
[1717980188121,1.12991573,3697.9,3697.3,35.0]
[1717980188286,1.12991573,3697.9,3697.3,37.65030545]
[1717980188625,1.12991573,3698.0,3697.4,0.08734894]
[1717980189194,1.12991573,3698.0,3697.5,35.0]
[1717980189403,1.12991573,3698.0,3697.6,0.08722864]
[1717980189799,2.4072,3697.9,3697.6,0.08722864]
[1717980191496,0.661,3697.8,3697.6,0.08722864]
[1717980191701,2.01318,3697.8,3697.6,0.08722864]
[1717980191901,1.12991573,3697.7,3697.6,0.08722864]
[1717980192089,3.54591573,3697.7,3697.6,0.08722864]
[1717980193207,2.416,3697.7,3697.6,0.08722864]
[1717980195496,1.35225,3697.6,3696.8,0.661]
[1717980195698,1.35225,3697.6,3696.9,1.04209]
[1717980196193,1.35225,3697.6,3697.1,35.0]
[1717980197326,1.35225,3697.6,3697.2,0.08392023]
[1717980197692,1.35225,3697.6,3697.1,35.0]
[1717980197899,1.35225,3697.6,3697.3,0.08386007]
[1717980198203,1.35225,3697.6,3697.1,35.0]
[1717980198402,1.35225,3697.6,3697.4,0.08379992]
[1717980198630,1.35225,3697.6,3697.1,35.0]
[1717980198835,1.35225,3697.6,3697.5,0.08373977]
[1717980199136,1.35225,3697.6,3697.1,35.0]
[1717980199298,1.35225,3697.6,3697.5,0.08373977]
[1717980199496,1.35225,3697.6,3697.1,35.0]
[1717980199708,1.35225,3697.6,3697.5,0.08373977]
[1717980199934,1.35225,3697.6,3697.1,35.0]
[1717980200226,1.35225,3697.6,3697.5,0.08373977]
[1717980200394,1.35225,3697.6,3697.1,35.0]
[1717980200595,1.35225,3697.6,3697.2,0.08392023]
[1717980200908,1.3523,3697.4,3697.1,35.0]
[1717980201114,1.3523,3697.4,3697.3,0.08386007]
[1717980201314,1.3523,3697.4,3697.1,35.0]
[1717980201516,1.3523,3697.4,3697.3,0.08111318]
[1717980201719,1.3523,3697.4,3697.1,35.0]
[1717980201901,1.3523,3697.4,3697.3,0.08111318]
[1717980202101,2.0133,3697.4,3697.1,35.0]
[1717980202302,2.01337,3697.2,3697.1,35.0]
[1717980202613,1.35237,3697.2,3697.1,35.0]
[1717980202820,3.61447,3697.2,3697.1,35.0]
[1717980205232,3.61447,3697.2,3696.4,10.3458]
[1717980205839,3.61447,3697.2,3696.5,35.0]
[1717980206045,3.61447,3697.2,3696.6,2.65030545]
[1717980206555,3.61447,3697.2,3696.5,0.661]
[1717980206844,3.61447,3697.2,3696.7,35.0]
[1717980212351,3.61447,3697.2,3696.8,0.08123508]
[1717980212751,3.61447,3697.2,3696.7,35.0]
[1717980212953,3.61447,3697.2,3696.9,0.08117492]
[1717980213243,3.61447,3697.2,3696.8,0.08123508]
[1717980213452,3.61447,3697.2,3697.0,0.08111476]
[1717980213819,3.61447,3697.2,3696.7,35.0]
[1717980214317,3.61447,3697.2,3696.8,0.08123508]
[1717980214518,3.61447,3697.2,3696.7,35.0]
[1717980214832,3.61447,3697.2,3696.9,0.08117492]
[1717980215039,3.61447,3697.2,3696.8,0.08123508]
[1717980215429,3.61447,3697.2,3696.9,0.08117492]
[1717980215837,3.61447,3697.2,3696.7,35.0]
[1717980216549,3.61447,3697.2,3696.8,0.08123508]
[1717980216953,3.61447,3697.2,3696.7,35.0]
[1717980217153,3.61447,3697.2,3696.9,0.08117492]
[1717980217319,3.61447,3697.2,3696.8,0.08123508]
[1717980217320,4.042017,3697.2,3696.8,0.08123508]
[1717980217650,3.61447,3697.2,3696.7,35.0]
[1717980217824,3.61447,3697.2,3696.8,0.08123508]
[1717980218031,3.61447,3697.2,3696.7,35.0]
[1717980218236,3.61447,3697.2,3696.8,0.08123508]
[1717980218444,4.27547,3697.2,3696.7,35.0]
[1717980218736,4.27547,3697.2,3696.9,0.08117492]
[1717980218943,4.27547,3697.2,3696.8,0.08142713]
[1717980219247,4.27547,3697.2,3696.9,0.08117492]
[1717980219758,4.27547,3697.2,3697.0,0.08111476]
[1717980220120,4.27547,3697.2,3696.7,35.0]
[1717980220321,4.27547,3697.2,3696.8,0.08142713]
[1717980220551,4.27547,3697.2,3696.7,35.0]
[1717980220759,4.27547,3697.2,3696.9,0.08120693]
[1717980221048,4.27547,3697.2,3696.8,0.08126709]
[1717980221256,4.27547,3697.2,3697.0,0.08114677]
[1717980221425,4.27547,3697.2,3696.7,35.0]
[1717980221825,4.27547,3697.2,3696.8,0.08126709]
[1717980222135,4.27547,3697.2,3696.7,35.0]
[1717980222534,4.27547,3697.2,3696.8,0.08127002]
[1717980222737,4.27547,3697.2,3696.7,35.0]
[1717980222938,4.27547,3697.2,3696.8,0.08127002]
[1717980223344,4.27547,3697.2,3696.7,35.0]
[1717980223544,4.27547,3697.2,3696.9,0.08120986]
[1717980223735,4.27547,3697.2,3696.8,0.08127002]
[1717980223935,4.27547,3697.2,3696.7,35.0]
[1717980224137,4.27547,3697.2,3696.8,0.08127002]
[1717980224337,4.27547,3697.2,3696.7,35.0]
[1717980224658,4.27547,3697.2,3696.8,0.08127002]
[1717980224965,4.27547,3697.2,3696.7,35.0]
[1717980225123,4.27547,3697.2,3696.9,0.08120986]
[1717980225329,4.27547,3697.2,3696.7,35.0]
[1717980225659,4.27547,3697.2,3696.8,0.08127002]
[1717980225827,4.27547,3697.2,3696.7,35.0]
[1717980226154,4.27547,3697.2,3696.8,0.08127002]
[1717980226530,4.27547,3697.2,3696.7,35.0]
[1717980226727,4.27547,3697.2,3696.8,0.08127002]
[1717980226961,4.27547,3697.2,3696.7,35.0]
[1717980227164,4.27547,3697.2,3696.9,0.08120986]
[1717980227474,4.27547,3697.2,3697.0,0.0811497]
[1717980227764,4.27547,3697.2,3696.7,35.0]
[1717980227963,4.27547,3697.2,3697.1,0.08108954]
[1717980228458,4.27547,3697.2,3696.7,35.0]
[1717980228661,4.27547,3697.2,3696.8,0.08127002]
[1717980228967,4.27547,3697.2,3696.7,35.0]
[1717980229144,4.27547,3697.2,3696.9,0.08120986]
[1717980229362,4.27547,3697.2,3696.7,35.0]
[1717980229849,4.27547,3697.2,3696.8,0.08127002]
[1717980230044,4.27547,3697.2,3696.7,35.0]
[1717980230239,4.27547,3697.2,3696.8,0.08127002]
[1717980230466,4.27547,3697.2,3696.7,35.0]
[1717980230640,4.27547,3697.2,3696.8,0.08127002]
[1717980230844,4.27547,3697.2,3696.7,35.0]
[1717980231054,4.27547,3697.2,3696.8,0.08127002]
[1717980231259,4.27547,3697.2,3696.7,35.0]
[1717980231432,4.27547,3697.2,3696.8,0.08127002]
[1717980231766,4.27547,3697.2,3696.7,35.0]
[1717980232062,4.27547,3697.2,3696.8,0.08127002]
[1717980232259,4.27547,3697.2,3696.7,35.0]
[1717980232467,4.27547,3697.2,3696.8,0.08127002]
[1717980232671,4.27547,3697.2,3696.7,35.0]
[1717980232981,4.27547,3697.2,3696.8,0.08127002]
[1717980233289,4.27547,3697.2,3696.7,35.0]
[1717980233447,4.27547,3697.2,3696.8,0.08127002]
[1717980233640,4.27547,3697.2,3696.7,35.0]
[1717980233840,4.27547,3697.2,3696.8,0.08127002]
[1717980234039,4.27547,3697.2,3696.7,35.0]
[1717980234234,4.27547,3697.2,3696.8,0.08127002]
[1717980234560,4.27547,3697.2,3696.7,35.0]
[1717980234768,4.27547,3697.2,3696.9,0.08120986]
[1717980234966,4.27547,3697.2,3696.8,0.08127002]
[1717980235175,4.27547,3697.2,3697.0,0.0811497]
[1717980235474,5.40538573,3697.2,3697.1,0.08108954]
[1717980235772,5.40538573,3697.2,3696.7,35.0]
[1717980235933,5.40538573,3697.2,3697.1,0.08108954]
[1717980236134,5.40538573,3697.2,3696.7,35.0]
[1717980236336,5.40538573,3697.2,3696.8,0.08127002]
[1717980236574,5.40538573,3697.2,3696.7,35.0]
[1717980236784,5.40538573,3697.2,3696.9,0.08120986]
[1717980237077,5.40538573,3697.2,3697.0,0.08113507]
[1717980237394,5.40538573,3697.2,3696.7,35.0]
[1717980237533,5.40538573,3697.2,3697.1,0.08107491]
[1717980237735,5.40538573,3697.2,3696.7,35.0]
[1717980238237,1.35245,3697.0,3696.8,0.08125539]
[1717980238541,1.35245,3697.0,3696.7,35.0]
[1717980238753,1.35245,3697.0,3696.8,0.08125539]
[1717980239075,1.35245,3697.0,3696.7,35.0]
[1717980239385,1.35245,3697.0,3696.8,0.08125539]
[1717980239753,1.35245,3697.0,3696.7,35.0]
[1717980239952,1.35245,3697.0,3696.9,0.08119523]
[1717980240165,1.35245,3697.0,3696.8,0.08125539]
[1717980240368,1.35245,3697.0,3696.9,0.08119523]
[1717980240756,1.35245,3697.0,3696.7,35.0]
[1717980240939,1.35245,3697.0,3696.9,0.08119523]
[1717980241480,1.35245,3697.0,3696.7,35.0]
[1717980241640,2.3433,3696.9,3696.8,0.08125539]
[1717980241839,2.3433,3696.9,3696.7,35.0]
[1717980242141,2.3433,3696.9,3696.8,0.08125539]
[1717980242342,2.3433,3696.9,3696.7,35.0]
[1717980242540,2.3433,3696.9,3696.8,0.08125539]
[1717980242777,2.3433,3696.9,3696.7,35.0]
[1717980242951,2.3433,3696.9,3696.8,0.08125539]
[1717980243153,2.3433,3696.9,3696.7,35.0]
[1717980243380,2.3433,3696.9,3696.8,0.08125539]
[1717980243676,2.3433,3696.9,3696.7,35.0]
[1717980243980,2.3433,3696.9,3696.8,0.08125539]
[1717980244368,2.3433,3696.9,3696.7,35.0]
[1717980244567,2.3433,3696.9,3696.8,0.08125539]
[1717980245377,3.47321573,3696.9,3696.7,35.0]
[1717980245583,3.47321573,3696.9,3696.8,0.08125539]
[1717980245946,3.47321573,3696.9,3696.7,35.0]
[1717980246149,3.47321573,3696.9,3696.8,0.08125539]
[1717980246551,3.47321573,3696.9,3696.7,35.0]
[1717980246780,3.47321573,3696.9,3696.8,0.08125539]
[1717980247085,3.47321573,3696.9,3696.7,35.0]
[1717980247285,3.47321573,3696.9,3696.8,0.08125539]
[1717980247449,3.47321573,3696.9,3696.7,35.0]
[1717980247651,3.47321573,3696.9,3696.8,0.08153359]
[1717980247852,3.47321573,3696.9,3696.7,35.0]
[1717980248066,3.47321573,3696.9,3696.8,0.08160389]
[1717980248267,3.47321573,3696.9,3696.7,35.0]
[1717980248453,3.47321573,3696.9,3696.8,0.08160389]
[1717980248769,3.47321573,3696.9,3696.7,35.0]
[1717980248970,1.12991573,3696.9,3696.8,0.08160389]
[1717980249415,1.12991573,3696.9,3696.7,35.0]
[1717980249548,1.12991573,3696.9,3696.8,0.0816359]
[1717980249751,1.12991573,3696.9,3696.7,35.0]
[1717980249949,1.12991573,3696.9,3696.8,0.0816359]
[1717980250186,1.12991573,3696.9,3696.7,35.0]
[1717980250365,2.48236573,3697.0,3696.8,0.0816359]
[1717980250680,2.48236573,3697.0,3696.7,35.0]
[1717980250884,2.48236573,3697.0,3696.8,0.0816359]
[1717980251182,2.48236573,3697.0,3696.7,35.0]
[1717980251386,2.48236573,3697.0,3696.9,0.08157574]
[1717980251596,2.48236573,3697.0,3696.8,0.0816359]
[1717980251791,1.35245,3697.0,3696.9,0.08157574]
[1717980252152,1.35245,3697.0,3696.7,35.0]
[1717980252489,1.12994506,3696.9,3696.7,35.0]
[1717980255300,1.12994506,3696.9,3696.4,2.3611]
[1717980255795,1.12994506,3696.9,3696.5,35.0]
[1717980257397,1.12994506,3696.9,3696.6,0.08175624]
[1717980257896,1.12994506,3696.9,3696.4,2.3611]
[1717980258064,1.12994506,3696.9,3696.5,35.08181641]
[1717980258466,2.4754,3696.8,3696.5,35.08181641]
[1717980258786,3.60534506,3696.8,3696.5,35.08181641]
[1717980268339,2.4754,3696.8,3696.5,35.08181641]
[1717980274035,3.60534506,3696.8,3696.5,35.08181641]
[1717980275324,1.12994506,3696.8,3696.5,35.08181641]
[1717980275838,1.12994506,3696.9,3696.5,35.08181641]
[1717980276514,1.12994506,3696.9,3696.5,36.93501337]
[1717980283867,1.12994506,3696.8,3696.5,36.93501337]
[1717980284156,1.12994506,3696.8,3696.5,35.08181641]
[1717980295961,1.12994506,3696.9,3696.5,35.08181641]
[1717980298227,2.3414,3696.8,3696.5,35.08181641]
[1717980298423,3.47134506,3696.8,3696.5,35.08181641]
[1717980300235,2.3414,3696.8,3696.5,35.08181641]
[1717980300637,3.47134506,3696.8,3696.5,35.08181641]
[1717980310561,1.35255,3696.7,3696.5,35.08181641]
[1717980310750,2.48249506,3696.7,3696.5,35.08181641]
[1717980310952,2.4933,3696.6,3696.5,35.08181641]
[1717980311550,3.1543,3696.6,3696.5,35.08181641]
[1717980311754,3.1543,3696.6,3696.5,0.08181641]
[1717980311953,5.34048618,3696.6,3696.5,0.08181641]
[1717980312196,1.35268,3696.4,3695.8,7.28]
[1717980312360,1.35268,3696.4,3695.9,35.0]
[1717980312361,2.3177,3696.3,3695.9,35.0]
[1717980313189,1.35274,3696.2,3695.9,35.0]
[1717980314094,2.4577,3696.1,3695.9,35.0]
[1717980317197,2.4577,3696.1,3696.0,0.07698742]
[1717980320604,2.4577,3696.1,3695.4,2.9167]
[1717980320903,2.4577,3696.1,3696.0,35.07698742]
[1717980325272,1.35274,3696.2,3696.0,35.07698742]
[1717980360620,1.12949153,3696.3,3696.0,35.07698742]
[1717980366333,1.12949153,3696.5,3696.0,37.40748742]
[1717980366647,1.12949153,3696.6,3696.1,2.65030545]
[1717980366832,3.0094,3696.9,3696.2,0.07707211]
[1717980366833,4.12949153,3696.7,3696.2,0.07707211]
[1717980367147,1.12949153,3696.7,3696.2,0.07707211]
[1717980368845,3.0,3696.8,3696.2,0.07707211]
[1717980368846,4.12949153,3696.8,3696.2,0.07707211]
[1717980369348,0.661,3696.7,3696.2,2.43613258]
[1717980369514,0.661,3696.7,3696.2,0.07707211]
[1717980369720,0.661,3696.7,3696.3,35.0]
[1717980370042,1.79049153,3696.7,3696.4,0.07695173]
[1717980370240,0.661,3696.7,3696.0,2.3305]
[1717980370447,0.661,3696.7,3696.1,0.5115683]
[1717980370656,1.79049153,3696.7,3696.2,35.0]
[1717980370964,1.79049153,3696.7,3696.3,0.07701192]
[1717980371160,0.661,3696.7,3696.3,0.07701192]
[1717980371327,0.661,3696.7,3696.1,0.434436]
[1717980371528,0.661,3696.7,3696.4,0.07695173]
[1717980371846,0.661,3696.7,3696.5,0.07689155]
[1717980372158,1.12949153,3696.8,3696.2,35.0]
[1717980372361,1.12949153,3696.8,3696.6,0.07683137]
[1717980372659,1.12949153,3696.8,3696.7,0.0767712]
[1717980372863,1.12949153,3696.8,3696.2,35.0]
[1717980373066,1.12949153,3696.8,3696.3,0.07701192]
[1717980373443,4.13889153,3696.9,3696.2,35.0]
[1717980373648,4.13889153,3696.9,3696.3,0.07701192]
[1717980374772,3.47789153,3696.9,3696.3,0.07701192]
[1717980374950,1.12949153,3696.8,3696.3,0.07701192]
[1717980375273,1.79049153,3696.9,3696.2,35.0]
[1717980375569,4.79049153,3696.9,3696.4,0.07695173]
[1717980375870,1.12949153,3697.0,3696.5,0.73782418]
[1717980376069,1.4115769,3697.2,3696.6,2.2949]
[1717980376070,1.12949153,3697.1,3696.6,2.2949]
[1717980376436,1.12949153,3697.3,3696.7,0.07670383]
[1717980377382,3.0,3697.3,3696.7,0.07670383]
[1717980377583,3.73662,3696.8,3696.7,0.07670383]
[1717980377788,4.39762,3696.8,3696.7,0.07670383]
[1717980378076,5.52711153,3696.8,3695.8,35.0]
[1717980378277,0.661,3696.6,3695.8,35.0]
[1717980378485,0.661,3696.6,3695.9,0.07710622]
[1717980378649,0.661,3696.6,3695.9,2.72741167]
[1717980378845,0.661,3696.6,3695.9,0.07710622]
[1717980379048,0.661,3696.6,3696.0,35.0]
[1717980379264,0.661,3696.6,3696.1,0.07698583]
[1717980379468,1.12944685,3696.7,3696.1,0.07698583]
[1717980379682,1.3526,3696.6,3696.1,0.07698583]
[1717980382466,1.3526,3696.6,3696.0,2.3158]
[1717980382798,3.6268,3696.6,3696.1,35.37475958]
[1717980382996,3.6268,3696.6,3696.1,35.07707958]
[1717980386132,3.6268,3696.6,3696.1,0.07707958]
[1717980386429,3.6268,3696.6,3695.7,0.661]
[1717980386632,3.6268,3696.6,3695.8,35.07726018]
[1717980386931,3.6268,3696.6,3695.9,2.65030545]
[1717980387233,3.6268,3696.6,3696.0,0.07722181]
[1717980387621,3.6268,3696.6,3696.1,35.0]
[1717980387820,3.6268,3696.6,3696.2,0.07710142]
[1717980391126,3.6268,3696.6,3695.7,0.661]
[1717980391333,3.6268,3696.6,3696.3,35.07704124]
[1717980391639,3.6268,3696.6,3696.4,0.07698105]
[1717980391923,3.6268,3696.6,3696.3,35.0]
[1717980392128,3.6268,3696.6,3696.5,0.07692087]
[1717980392729,3.6268,3696.6,3696.3,35.0]
[1717980392936,1.3526,3696.6,3696.5,0.07692087]
[1717980393103,1.3526,3696.6,3696.4,0.07698105]
[1717980393309,1.3526,3696.6,3696.3,35.0]
[1717980393310,2.48196366,3696.6,3696.5,0.07692087]
[1717980393696,2.48196366,3696.6,3696.3,35.0]
[1717980393997,1.3526,3696.6,3696.4,0.07698105]
[1717980394197,1.3526,3696.6,3696.3,35.0]
[1717980394392,2.0136,3696.6,3696.4,0.07698105]
[1717980394597,2.0136,3696.6,3696.3,35.0]
[1717980394832,2.0136,3696.6,3696.4,0.07698105]
[1717980395029,2.0136,3696.6,3696.3,35.0]
[1717980395202,2.0136,3696.6,3696.4,0.07698105]
[1717980395551,2.0136,3696.6,3696.3,35.0]
[1717980395726,2.0136,3696.6,3696.5,0.07692087]
[1717980396235,1.3526,3696.6,3696.3,35.0]
[1717980396446,1.3526,3696.6,3696.4,0.07698105]
[1717980396597,1.3526,3696.6,3696.3,35.0]
[1717980396800,1.3526,3696.6,3696.4,0.07698105]
[1717980397028,1.3526,3696.6,3696.3,35.0]
[1717980397228,1.3526,3696.6,3696.4,0.07696932]
[1717980397449,1.3526,3696.6,3696.3,35.0]
[1717980397614,1.3526,3696.6,3696.4,0.07696932]
[1717980397937,1.3526,3696.6,3696.3,35.0]
[1717980398337,1.3526,3696.6,3696.4,0.07696932]
[1717980398701,1.3526,3696.6,3696.3,35.0]
[1717980399003,1.3526,3696.6,3696.4,0.07696932]
[1717980399214,1.3526,3696.6,3696.3,35.0]
[1717980399634,1.3526,3696.6,3696.4,0.07696932]
[1717980399853,1.3526,3696.6,3696.3,35.0]
[1717980400059,1.3526,3696.6,3696.4,0.07696932]
[1717980400259,1.3526,3696.6,3696.3,35.0]
[1717980400484,1.3526,3696.6,3696.4,0.07696932]
[1717980400626,1.3526,3696.6,3696.3,35.0]
[1717980400825,1.3526,3696.6,3696.4,0.07696932]
[1717980401053,1.3526,3696.6,3696.3,35.0]
[1717980401369,3.14296366,3696.6,3696.4,0.07696932]
[1717980401558,3.82875463,3696.6,3696.4,0.07696932]
[1717980401724,3.82875463,3696.6,3696.3,35.0]
[1717980401924,3.82875463,3696.6,3696.5,0.07690913]
[1717980402127,3.82875463,3696.6,3696.4,0.07696932]
[1717980402366,3.14296366,3696.6,3696.5,0.07690913]
[1717980402725,3.14296366,3696.6,3696.3,35.0]
[1717980402958,3.14296366,3696.6,3696.5,0.07690913]
[1717980403470,3.14296366,3696.6,3696.3,35.0]
[1717980403671,3.14296366,3696.6,3696.4,0.07696932]
[1717980403967,3.14296366,3696.6,3696.3,35.0]
[1717980404125,3.14296366,3696.6,3696.5,0.07690913]
[1717980404326,3.14296366,3696.6,3696.4,0.07696932]
[1717980404546,3.14296366,3696.6,3696.5,0.07690913]
[1717980404954,3.14296366,3696.6,3696.3,35.0]
[1717980405237,3.14296366,3696.6,3696.4,0.07696932]
[1717980405439,3.14296366,3696.6,3696.3,35.0]
[1717980405742,3.14296366,3696.6,3696.4,0.07696932]
[1717980406061,3.14296366,3696.6,3696.3,35.0]
[1717980406265,3.14296366,3696.6,3696.4,0.07696932]
[1717980406476,3.14296366,3696.6,3696.3,35.0]
[1717980406639,3.14296366,3696.6,3696.4,0.07696932]
[1717980406965,3.14296366,3696.6,3696.3,35.0]
[1717980407146,3.14296366,3696.6,3696.5,0.07689743]
[1717980407351,3.14296366,3696.6,3696.4,0.07695762]
[1717980407558,3.14296366,3696.6,3696.5,0.07689743]
[1717980407855,3.14296366,3696.6,3696.3,35.0]
[1717980408056,3.14296366,3696.6,3696.4,0.07695762]
[1717980408393,3.14296366,3696.6,3696.3,35.0]
[1717980408553,3.14296366,3696.6,3696.5,0.07689743]
[1717980409080,3.14296366,3696.6,3696.3,35.0]
[1717980409382,3.14296366,3696.6,3696.4,0.07695762]
[1717980409745,3.14296366,3696.6,3696.3,35.0]
[1717980410080,3.14296366,3696.6,3696.4,0.07695762]
[1717980410287,3.14296366,3696.6,3696.3,35.0]
[1717980410585,3.14296366,3696.6,3696.4,0.07695762]
[1717980410886,3.14296366,3696.6,3696.3,35.0]
[1717980411047,3.14296366,3696.6,3696.4,0.07695762]
[1717980411382,3.14296366,3696.6,3696.3,35.0]
[1717980411585,3.14296366,3696.6,3696.5,0.07689743]
[1717980411881,2.48196366,3696.6,3696.5,0.07689743]
[1717980412082,3.14296366,3696.6,3696.5,0.07689743]
[1717980412289,3.14296366,3696.6,3696.3,35.0]
[1717980412450,3.14296366,3696.6,3696.4,0.07695762]
[1717980412650,3.14296366,3696.6,3696.3,35.0]
[1717980412879,3.14296366,3696.6,3696.4,0.07695762]
[1717980413049,3.14296366,3696.6,3696.3,35.0]
[1717980413392,3.14296366,3696.6,3696.4,0.07695762]
[1717980413762,3.14296366,3696.6,3696.3,35.0]
[1717980414088,3.14296366,3696.6,3696.4,0.07695762]
[1717980414259,3.14296366,3696.6,3696.3,35.0]
[1717980414582,3.14296366,3696.6,3696.4,0.07695762]
[1717980414973,3.14296366,3696.6,3696.3,35.0]
[1717980415170,3.14296366,3696.6,3696.5,0.07689743]
[1717980415784,3.14296366,3696.6,3696.3,35.0]
[1717980415986,3.14296366,3696.6,3696.5,0.07689743]
[1717980416144,3.14296366,3696.6,3696.4,0.07695762]
[1717980416348,3.14296366,3696.6,3696.5,0.07689743]
[1717980416761,3.14296366,3696.6,3696.3,35.0]
[1717980416955,3.14296366,3696.6,3696.5,0.07689743]
[1717980417156,3.14296366,3696.6,3696.4,0.07695762]
[1717980417373,3.14296366,3696.6,3696.5,0.07689743]
[1717980417791,3.14296366,3696.6,3696.3,35.0]
[1717980418095,3.14296366,3696.6,3696.4,0.07695762]
[1717980418388,3.14296366,3696.6,3696.3,35.0]
[1717980418605,3.14296366,3696.6,3696.5,0.07689743]
[1717980418753,3.14296366,3696.6,3696.4,0.07695762]
[1717980418953,3.14296366,3696.6,3696.5,0.07689743]